[Event "Titled Tuesday Blitz June 22 2021"]
[White "Andreikin, Dmitry"]
[Black "Pliukha, Myhajlo"]
[WhiteFideId "4158814"]
[BlackFideId "14164698"]
[WhiteElo "2782"]
[BlackElo "2225"]
[Result "1-0"]
[Round "01"]
[TimeControl "180+1"]
[Date "2021.06.22"]
[WhiteClock "0:00:29"]
[BlackClock "0:00:29"]

1. e4 {[%clk 0:03:00]}  c6 {[%clk 0:02:59]} 2. Nf3 {[%clk 0:02:59]}  d5 {[%clk 0:02:59]} 3. d3 {[%clk 0:03:00]}  dxe4 {[%clk 0:02:59]} 4. dxe4 {[%clk 0:03:01]}  Qxd1+ {[%clk 0:03:00]} 5. Kxd1 {[%clk 0:03:02]}  Bg4 {[%clk 0:03:00]} 6. Be2 {[%clk 0:03:01]}  Nd7 {[%clk 0:03:00]} 7. Nfd2 {[%clk 0:03:01]}  Bxe2+ {[%clk 0:03:00]} 8. Kxe2 {[%clk 0:03:02]}  O-O-O {[%clk 0:02:59]} 9. Nc4 {[%clk 0:02:56]}  e6 {[%clk 0:02:31]} 10. Rd1 {[%clk 0:02:49]}  Ngf6 {[%clk 0:02:29]} 11. f3 {[%clk 0:02:47]}  Bc5 {[%clk 0:02:23]} 12. Bf4 {[%clk 0:02:39]}  Nb6 {[%clk 0:02:23]} 13. Nbd2 {[%clk 0:02:30]}  Nxc4 {[%clk 0:02:20]} 14. Nxc4 {[%clk 0:02:30]}  Nd7 {[%clk 0:02:19]} 15. Bd6 {[%clk 0:02:04]}  Nb6 {[%clk 0:01:40]} 16. Bxc5 {[%clk 0:02:04]}  Nxc4 {[%clk 0:01:40]} 17. b3 {[%clk 0:02:04]}  b6 {[%clk 0:01:27]} 18. Bd4 {[%clk 0:01:54]}  Na3 {[%clk 0:01:27]} 19. Bxg7 {[%clk 0:01:39]}  Rxd1 {[%clk 0:01:21]} 20. Rxd1 {[%clk 0:01:31]}  Rg8 {[%clk 0:01:21]} 21. Bb2 {[%clk 0:01:27]}  Nxc2 {[%clk 0:01:13]} 22. g4 {[%clk 0:01:26]}  h5 {[%clk 0:01:11]} 23. h3 {[%clk 0:01:07]}  hxg4 {[%clk 0:01:09]} 24. fxg4 {[%clk 0:01:08]}  f5 {[%clk 0:01:05]} 25. exf5 {[%clk 0:01:00]}  exf5 {[%clk 0:01:06]} 26. gxf5 {[%clk 0:00:57]}  Rg2+ {[%clk 0:00:54]} 27. Kf3 {[%clk 0:00:55]}  Rh2 {[%clk 0:00:46]} 28. Kg3 {[%clk 0:00:46]}  Re2 {[%clk 0:00:45]} 29. f6 {[%clk 0:00:40]}  Ne3 {[%clk 0:00:43]} 30. f7 {[%clk 0:00:35]}  Nxd1 {[%clk 0:00:43]} 31. f8=Q+ {[%clk 0:00:35]}  Kb7 {[%clk 0:00:43]} 32. Qf7+ {[%clk 0:00:35]}  Kb8 {[%clk 0:00:40]} 33. Be5+ {[%clk 0:00:32]}  Ka8 {[%clk 0:00:34]} 34. Qc7 {[%clk 0:00:29]}  Re3+ {[%clk 0:00:31]} 35. Kf4 {[%clk 0:00:29]}  Rxe5 {[%clk 0:00:29]} 36. Qc8# {[%clk 0:00:29]} 1-0


[Site "https://www.chess.com"]

[Event "Titled Tuesday Blitz June 22 2021"]
[White "Jobava, Baadur"]
[Black "Mikhalsky, Vladimir"]
[WhiteFideId "13601520"]
[BlackFideId "14144352"]
[WhiteElo "2748"]
[BlackElo "2280"]
[Result "1-0"]
[Round "01"]
[TimeControl "180+1"]
[Date "2021.06.22"]
[WhiteClock "0:02:00"]
[BlackClock "0:01:56"]

1. d4 {[%clk 0:03:00]}  g6 {[%clk 0:02:58]} 2. Nc3 {[%clk 0:03:01]}  Bg7 {[%clk 0:02:53]} 3. e4 {[%clk 0:03:00]}  d6 {[%clk 0:02:53]} 4. Be2 {[%clk 0:03:00]}  a6 {[%clk 0:02:52]} 5. a4 {[%clk 0:02:59]}  b6 {[%clk 0:02:52]} 6. h4 {[%clk 0:02:59]}  h6 {[%clk 0:02:49]} 7. h5 {[%clk 0:02:57]}  g5 {[%clk 0:02:49]} 8. f4 {[%clk 0:02:57]}  gxf4 {[%clk 0:02:46]} 9. Bxf4 {[%clk 0:02:58]}  Nd7 {[%clk 0:02:44]} 10. Nf3 {[%clk 0:02:58]}  Bb7 {[%clk 0:02:42]} 11. O-O {[%clk 0:02:54]}  Ngf6 {[%clk 0:02:37]} 12. e5 {[%clk 0:02:54]}  Nxh5 {[%clk 0:02:31]} 13. Bh2 {[%clk 0:02:54]}  dxe5 {[%clk 0:02:29]} 14. dxe5 {[%clk 0:02:52]}  Nc5 {[%clk 0:02:26]} 15. Nd4 {[%clk 0:02:47]}  Rg8 {[%clk 0:02:15]} 16. Bxh5 {[%clk 0:02:45]}  Bxg2 {[%clk 0:02:08]} 17. Bxf7+ {[%clk 0:02:37]}  Kd7 {[%clk 0:02:07]} 18. Qg4+ {[%clk 0:02:34]}  e6 {[%clk 0:02:04]} 19. Bxe6+ {[%clk 0:02:34]}  Ke7 {[%clk 0:02:00]} 20. Qh4+ {[%clk 0:02:00]}  Ke8 {[%clk 0:01:56]} 21. Qh5+ {[%clk 0:02:00]} 1-0


[Site "https://www.chess.com"]

[Event "Titled Tuesday Blitz June 22 2021"]
[White "Jones, Gawain C B"]
[Black "Muthaiah AL"]
[WhiteFideId "409561"]
[BlackFideId "5092442"]
[WhiteElo "2657"]
[BlackElo "2184"]
[Result "1-0"]
[Round "01"]
[TimeControl "180+1"]
[Date "2021.06.22"]
[WhiteClock "0:01:47"]
[BlackClock "0:00:04"]

1. Nf3 {[%clk 0:02:58]}  Nf6 {[%clk 0:02:58]} 2. g3 {[%clk 0:02:58]}  b5 {[%clk 0:02:57]} 3. Na3 {[%clk 0:02:56]}  a6 {[%clk 0:02:54]} 4. c4 {[%clk 0:02:55]}  e6 {[%clk 0:02:42]} 5. cxb5 {[%clk 0:02:52]}  Bxa3 {[%clk 0:02:39]} 6. bxa3 {[%clk 0:02:53]}  axb5 {[%clk 0:02:39]} 7. Rb1 {[%clk 0:02:54]}  c6 {[%clk 0:02:35]} 8. Bg2 {[%clk 0:02:49]}  O-O {[%clk 0:02:33]} 9. O-O {[%clk 0:02:49]}  d5 {[%clk 0:02:30]} 10. d4 {[%clk 0:02:45]}  Nbd7 {[%clk 0:02:28]} 11. Bd2 {[%clk 0:02:44]}  Nb6 {[%clk 0:02:24]} 12. Bb4 {[%clk 0:02:44]}  Re8 {[%clk 0:02:23]} 13. Ne5 {[%clk 0:02:44]}  Bb7 {[%clk 0:02:22]} 14. Nd3 {[%clk 0:02:40]}  Nfd7 {[%clk 0:02:17]} 15. Re1 {[%clk 0:02:26]}  Nc4 {[%clk 0:02:12]} 16. Qc1 {[%clk 0:02:25]}  Qb6 {[%clk 0:01:47]} 17. e3 {[%clk 0:02:20]}  Qa7 {[%clk 0:01:29]} 18. Rb3 {[%clk 0:02:18]}  h6 {[%clk 0:01:26]} 19. f4 {[%clk 0:02:16]}  Ndb6 {[%clk 0:00:56]} 20. Bc5 {[%clk 0:02:15]}  Qa5 {[%clk 0:00:49]} 21. Re2 {[%clk 0:02:10]}  Nd7 {[%clk 0:00:40]} 22. Bb4 {[%clk 0:02:09]}  Qd8 {[%clk 0:00:39]} 23. Bf3 {[%clk 0:02:01]}  Bc8 {[%clk 0:00:20]} 24. Rg2 {[%clk 0:01:57]}  Nf6 {[%clk 0:00:18]} 25. Nc5 {[%clk 0:01:54]}  Nd7 {[%clk 0:00:18]} 26. Nd3 {[%clk 0:01:53]}  Nf6 {[%clk 0:00:17]} 27. g4 {[%clk 0:01:52]}  Ne4 {[%clk 0:00:17]} 28. Bxe4 {[%clk 0:01:50]}  dxe4 {[%clk 0:00:17]} 29. Nc5 {[%clk 0:01:51]}  Qd5 {[%clk 0:00:17]} 30. g5 {[%clk 0:01:50]}  h5 {[%clk 0:00:13]} 31. Qc2 {[%clk 0:01:48]}  Nxe3 {[%clk 0:00:08]} 32. Rxe3 {[%clk 0:01:48]}  Qxd4 {[%clk 0:00:07]} 33. Qxe4 {[%clk 0:01:47]}  Qd1+ {[%clk 0:00:04]} 34. Re1 {[%clk 0:01:47]} 1-0


[Site "https://www.chess.com"]

[Event "Titled Tuesday Blitz June 22 2021"]
[White "Loh, Zachary"]
[Black "Hansen, Eric"]
[WhiteFideId "3210383"]
[BlackFideId "2606771"]
[WhiteElo "2118"]
[BlackElo "2568"]
[Result "0-1"]
[Round "01"]
[TimeControl "180+1"]
[Date "2021.06.22"]
[WhiteClock "0:00:49"]
[BlackClock "0:01:35"]

1. e4 {[%clk 0:02:58]}  d6 {[%clk 0:02:44]} 2. d4 {[%clk 0:02:57]}  Nf6 {[%clk 0:02:45]} 3. Nc3 {[%clk 0:02:57]}  e5 {[%clk 0:02:45]} 4. Nf3 {[%clk 0:02:58]}  Nbd7 {[%clk 0:02:46]} 5. g4 {[%clk 0:02:58]}  c6 {[%clk 0:02:37]} 6. g5 {[%clk 0:02:57]}  Nh5 {[%clk 0:02:36]} 7. Be3 {[%clk 0:02:58]}  Qa5 {[%clk 0:02:31]} 8. Nxe5 {[%clk 0:02:27]}  dxe5 {[%clk 0:02:28]} 9. Qxh5 {[%clk 0:02:26]}  Bb4 {[%clk 0:02:28]} 10. Bd3 {[%clk 0:01:40]}  Bxc3+ {[%clk 0:02:23]} 11. bxc3 {[%clk 0:01:41]}  Qxc3+ {[%clk 0:02:24]} 12. Ke2 {[%clk 0:01:42]}  exd4 {[%clk 0:02:23]} 13. Bd2 {[%clk 0:01:42]}  Qc5 {[%clk 0:02:24]} 14. f4 {[%clk 0:01:27]}  a5 {[%clk 0:02:03]} 15. e5 {[%clk 0:01:20]}  b6 {[%clk 0:02:01]} 16. g6 {[%clk 0:01:13]}  fxg6 {[%clk 0:01:58]} 17. Bxg6+ {[%clk 0:01:13]}  hxg6 {[%clk 0:01:59]} 18. Qxh8+ {[%clk 0:01:12]}  Nf8 {[%clk 0:01:55]} 19. Qxg7 {[%clk 0:01:03]}  Qxc2 {[%clk 0:01:38]} 20. Rad1 {[%clk 0:00:49]}  Bg4+ {[%clk 0:01:35]} 0-1


[Site "https://www.chess.com"]

[Event "Titled Tuesday Blitz June 22 2021"]
[White "Manukyan, Sargis A."]
[Black "Maghsoodloo, Parham"]
[WhiteFideId "13303970"]
[BlackFideId "12539929"]
[WhiteElo "2187"]
[BlackElo "2601"]
[Result "1-0"]
[Round "01"]
[TimeControl "180+1"]
[Date "2021.06.22"]
[WhiteClock "0:00:56"]
[BlackClock "0:01:39"]

1. Nf3 {[%clk 0:02:54]}  d5 {[%clk 0:03:00]} 2. c4 {[%clk 0:02:51]}  e6 {[%clk 0:03:00]} 3. b3 {[%clk 0:02:48]}  Nf6 {[%clk 0:02:59]} 4. Bb2 {[%clk 0:02:49]}  Nbd7 {[%clk 0:02:57]} 5. g3 {[%clk 0:02:47]}  b6 {[%clk 0:02:57]} 6. Bg2 {[%clk 0:02:47]}  Bb7 {[%clk 0:02:57]} 7. O-O {[%clk 0:02:47]}  g6 {[%clk 0:02:57]} 8. d3 {[%clk 0:02:41]}  Bg7 {[%clk 0:02:57]} 9. Nbd2 {[%clk 0:02:35]}  O-O {[%clk 0:02:57]} 10. Rc1 {[%clk 0:02:31]}  c5 {[%clk 0:02:57]} 11. cxd5 {[%clk 0:02:31]}  exd5 {[%clk 0:02:55]} 12. d4 {[%clk 0:02:28]}  Ne4 {[%clk 0:02:54]} 13. Rc2 {[%clk 0:02:20]}  Qe7 {[%clk 0:02:43]} 14. Qa1 {[%clk 0:02:12]}  Rfd8 {[%clk 0:02:43]} 15. dxc5 {[%clk 0:02:10]}  Bxb2 {[%clk 0:02:41]} 16. Qxb2 {[%clk 0:02:11]}  bxc5 {[%clk 0:02:41]} 17. Rd1 {[%clk 0:02:02]}  d4 {[%clk 0:02:33]} 18. Nc4 {[%clk 0:01:55]}  Nc3 {[%clk 0:02:24]} 19. Rxc3 {[%clk 0:01:46]}  dxc3 {[%clk 0:02:24]} 20. Qxc3 {[%clk 0:01:47]}  Nb6 {[%clk 0:02:24]} 21. Re1 {[%clk 0:01:36]}  Rac8 {[%clk 0:02:20]} 22. h4 {[%clk 0:01:35]}  h5 {[%clk 0:02:19]} 23. Na5 {[%clk 0:01:33]}  Be4 {[%clk 0:02:18]} 24. Bh3 {[%clk 0:01:31]}  Rc7 {[%clk 0:02:17]} 25. Ng5 {[%clk 0:01:30]}  Ba8 {[%clk 0:02:11]} 26. e4 {[%clk 0:01:26]}  c4 {[%clk 0:01:57]} 27. Nxc4 {[%clk 0:01:23]}  Nxc4 {[%clk 0:01:54]} 28. bxc4 {[%clk 0:01:23]}  Qc5 {[%clk 0:01:51]} 29. Bf1 {[%clk 0:01:10]}  Qd4 {[%clk 0:01:42]} 30. Qa5 {[%clk 0:01:04]}  Qd2 {[%clk 0:01:40]} 31. Qxc7 {[%clk 0:00:59]}  Rf8 {[%clk 0:01:39]} 32. Re3 {[%clk 0:00:56]} 1-0


[Site "https://www.chess.com"]

[Event "Titled Tuesday Blitz June 22 2021"]
[White "Miszler, Levente"]
[Black "Lazavik, Denis"]
[WhiteFideId "763276"]
[BlackFideId "13515110"]
[WhiteElo "1967"]
[BlackElo "2436"]
[Result "0-1"]
[Round "01"]
[TimeControl "180+1"]
[Date "2021.06.22"]
[WhiteClock "0:00:16"]
[BlackClock "0:01:05"]

1. d4 {[%clk 0:03:00]}  Nf6 {[%clk 0:02:58]} 2. Nf3 {[%clk 0:02:50]}  d5 {[%clk 0:02:56]} 3. Bf4 {[%clk 0:02:49]}  e6 {[%clk 0:02:53]} 4. e3 {[%clk 0:02:49]}  Bd6 {[%clk 0:02:54]} 5. Bd3 {[%clk 0:02:46]}  O-O {[%clk 0:02:52]} 6. Nbd2 {[%clk 0:02:42]}  c5 {[%clk 0:02:51]} 7. c3 {[%clk 0:02:41]}  Bxf4 {[%clk 0:02:45]} 8. exf4 {[%clk 0:02:41]}  b6 {[%clk 0:02:46]} 9. O-O {[%clk 0:02:40]}  Ba6 {[%clk 0:02:41]} 10. Qe2 {[%clk 0:02:33]}  Bxd3 {[%clk 0:02:39]} 11. Qxd3 {[%clk 0:02:34]}  Nc6 {[%clk 0:02:37]} 12. Ne5 {[%clk 0:02:30]}  Ne7 {[%clk 0:02:35]} 13. Rfe1 {[%clk 0:02:26]}  Nf5 {[%clk 0:02:32]} 14. Ndf3 {[%clk 0:02:25]}  Qc7 {[%clk 0:02:26]} 15. Re2 {[%clk 0:02:07]}  Ne4 {[%clk 0:02:09]} 16. Rae1 {[%clk 0:01:57]}  f6 {[%clk 0:02:06]} 17. Ng4 {[%clk 0:01:34]}  Qxf4 {[%clk 0:02:05]} 18. Ne3 {[%clk 0:01:31]}  Nxe3 {[%clk 0:02:00]} 19. Rxe3 {[%clk 0:01:30]}  Rac8 {[%clk 0:01:56]} 20. g3 {[%clk 0:01:04]}  Qg4 {[%clk 0:01:48]} 21. Nd2 {[%clk 0:00:52]}  Ng5 {[%clk 0:01:32]} 22. Kg2 {[%clk 0:00:32]}  cxd4 {[%clk 0:01:24]} 23. cxd4 {[%clk 0:00:32]}  Qh3+ {[%clk 0:01:23]} 24. Kg1 {[%clk 0:00:31]}  f5 {[%clk 0:01:18]} 25. f4 {[%clk 0:00:31]}  Ne4 {[%clk 0:01:17]} 26. Nf3 {[%clk 0:00:29]}  Qh5 {[%clk 0:01:13]} 27. Ne5 {[%clk 0:00:20]}  Rc7 {[%clk 0:01:12]} 28. R3e2 {[%clk 0:00:17]}  Rfc8 {[%clk 0:01:11]} 29. Qa3 {[%clk 0:00:16]}  h6 {[%clk 0:01:06]} 30. Qd6 {[%clk 0:00:16]}  Nxd6 {[%clk 0:01:05]} 0-1


[Site "https://www.chess.com"]

[Event "Titled Tuesday Blitz June 22 2021"]
[White "Nguyen, Ngoc Truong Son"]
[Black "Rodchenkov, Sergey D."]
[WhiteFideId "12401110"]
[BlackFideId "4168712"]
[WhiteElo "2596"]
[BlackElo "2306"]
[Result "1-0"]
[Round "01"]
[TimeControl "180+1"]
[Date "2021.06.22"]
[WhiteClock "0:00:11"]
[BlackClock "0:00:05"]

1. e4 {[%clk 0:03:00]}  c5 {[%clk 0:02:57]} 2. Nf3 {[%clk 0:03:00]}  d6 {[%clk 0:02:57]} 3. d4 {[%clk 0:03:00]}  cxd4 {[%clk 0:02:56]} 4. Nxd4 {[%clk 0:03:01]}  Nf6 {[%clk 0:02:55]} 5. Nc3 {[%clk 0:03:01]}  a6 {[%clk 0:02:54]} 6. Bg5 {[%clk 0:03:01]}  e6 {[%clk 0:02:52]} 7. f4 {[%clk 0:03:00]}  Qb6 {[%clk 0:02:51]} 8. Qd2 {[%clk 0:02:59]}  Qxb2 {[%clk 0:02:51]} 9. Rb1 {[%clk 0:02:58]}  Qa3 {[%clk 0:02:51]} 10. f5 {[%clk 0:02:30]}  Nc6 {[%clk 0:02:44]} 11. fxe6 {[%clk 0:02:26]}  fxe6 {[%clk 0:02:43]} 12. Bc4 {[%clk 0:02:09]}  Qc5 {[%clk 0:02:29]} 13. Nxe6 {[%clk 0:02:05]}  Qxc4 {[%clk 0:01:57]} 14. Nc7+ {[%clk 0:02:04]}  Kf7 {[%clk 0:01:54]} 15. Bxf6 {[%clk 0:01:53]}  gxf6 {[%clk 0:01:51]} 16. Nxa8 {[%clk 0:01:53]}  Qc5 {[%clk 0:01:40]} 17. Nb6 {[%clk 0:01:49]}  Be6 {[%clk 0:01:34]} 18. Nbd5 {[%clk 0:01:37]}  b5 {[%clk 0:01:33]} 19. Rf1 {[%clk 0:01:29]}  Bg7 {[%clk 0:01:31]} 20. e5 {[%clk 0:01:06]}  Nxe5 {[%clk 0:01:15]} 21. Nxf6 {[%clk 0:01:03]}  Bxf6 {[%clk 0:00:59]} 22. Rxf6+ {[%clk 0:01:04]}  Ke7 {[%clk 0:00:53]} 23. Ne4 {[%clk 0:01:02]}  Qb6 {[%clk 0:00:46]} 24. Qg5 {[%clk 0:00:54]}  Kd7 {[%clk 0:00:32]} 25. Qg7+ {[%clk 0:00:32]}  Kc6 {[%clk 0:00:32]} 26. Qg3 {[%clk 0:00:20]}  Re8 {[%clk 0:00:27]} 27. Rd1 {[%clk 0:00:16]}  Nc4 {[%clk 0:00:14]} 28. Nxd6 {[%clk 0:00:14]}  Re7 {[%clk 0:00:11]} 29. Nxc4 {[%clk 0:00:10]}  Qc5 {[%clk 0:00:06]} 30. Qd6+ {[%clk 0:00:09]}  Qxd6 {[%clk 0:00:06]} 31. Rxd6+ {[%clk 0:00:10]}  Kc5 {[%clk 0:00:06]} 32. Rfxe6 {[%clk 0:00:09]}  Rf7 {[%clk 0:00:06]} 33. Rc6+ {[%clk 0:00:09]}  Kb4 {[%clk 0:00:06]} 34. Ne5 {[%clk 0:00:10]}  Rf5 {[%clk 0:00:05]} 35. Nd3+ {[%clk 0:00:10]}  Ka3 {[%clk 0:00:05]} 36. Rxa6# {[%clk 0:00:11]} 1-0


[Site "https://www.chess.com"]

[Event "Titled Tuesday Blitz June 22 2021"]
[White "Perez Ponsa, Federico"]
[Black "Rodriguez, Santiago"]
[WhiteFideId "117927"]
[BlackFideId "3000591"]
[WhiteElo "2672"]
[BlackElo "2256"]
[Result "1-0"]
[Round "01"]
[TimeControl "180+1"]
[Date "2021.06.22"]
[WhiteClock "0:01:49"]
[BlackClock "0:01:26"]

1. e4 {[%clk 0:02:45]}  c5 {[%clk 0:02:59]} 2. Nf3 {[%clk 0:02:44]}  Nc6 {[%clk 0:02:57]} 3. d4 {[%clk 0:02:42]}  cxd4 {[%clk 0:02:58]} 4. Nxd4 {[%clk 0:02:42]}  e5 {[%clk 0:02:59]} 5. Nb5 {[%clk 0:02:41]}  d6 {[%clk 0:02:59]} 6. c4 {[%clk 0:02:41]}  Be7 {[%clk 0:02:58]} 7. N5c3 {[%clk 0:02:40]}  f5 {[%clk 0:02:56]} 8. exf5 {[%clk 0:02:39]}  Bxf5 {[%clk 0:02:55]} 9. Bd3 {[%clk 0:02:39]}  Be6 {[%clk 0:02:54]} 10. Nd5 {[%clk 0:02:37]}  Nf6 {[%clk 0:02:53]} 11. Nbc3 {[%clk 0:02:38]}  O-O {[%clk 0:02:52]} 12. O-O {[%clk 0:02:37]}  Rc8 {[%clk 0:02:50]} 13. Be3 {[%clk 0:02:27]}  Nd4 {[%clk 0:02:47]} 14. Re1 {[%clk 0:02:17]}  Nxd5 {[%clk 0:02:32]} 15. Nxd5 {[%clk 0:02:13]}  Bxd5 {[%clk 0:02:17]} 16. cxd5 {[%clk 0:02:14]}  Bg5 {[%clk 0:02:16]} 17. Qh5 {[%clk 0:02:00]}  h6 {[%clk 0:01:35]} 18. Bxd4 {[%clk 0:01:50]}  exd4 {[%clk 0:01:33]} 19. Qg6 {[%clk 0:01:51]}  Qf6 {[%clk 0:01:26]} 20. Qh7+ {[%clk 0:01:49]}  Kf7 {[%clk 0:01:26]} 21. Re6 {[%clk 0:01:49]} 1-0


[Site "https://www.chess.com"]

[Event "Titled Tuesday Blitz June 22 2021"]
[White "Quparadze, Giga"]
[Black "Tronenkovs, Valdis"]
[WhiteFideId "13602250"]
[BlackFideId "11601558"]
[WhiteElo "2658"]
[BlackElo "2232"]
[Result "1-0"]
[Round "01"]
[TimeControl "180+1"]
[Date "2021.06.22"]
[WhiteClock "0:02:24"]
[BlackClock "0:00:01"]

1. e4 {[%clk 0:03:00]}  c5 {[%clk 0:02:59]} 2. Ne2 {[%clk 0:03:00]}  Nc6 {[%clk 0:02:43]} 3. Nbc3 {[%clk 0:02:59]}  g6 {[%clk 0:02:35]} 4. d4 {[%clk 0:02:58]}  cxd4 {[%clk 0:02:36]} 5. Nxd4 {[%clk 0:02:59]}  Bg7 {[%clk 0:02:35]} 6. Nb3 {[%clk 0:03:00]}  Nf6 {[%clk 0:02:28]} 7. Be2 {[%clk 0:02:58]}  O-O {[%clk 0:02:19]} 8. O-O {[%clk 0:02:57]}  d6 {[%clk 0:02:19]} 9. Re1 {[%clk 0:02:57]}  Be6 {[%clk 0:02:14]} 10. Bg5 {[%clk 0:02:56]}  h6 {[%clk 0:01:58]} 11. Bh4 {[%clk 0:02:56]}  g5 {[%clk 0:01:49]} 12. Bg3 {[%clk 0:02:55]}  d5 {[%clk 0:01:49]} 13. Nc5 {[%clk 0:02:52]}  d4 {[%clk 0:01:06]} 14. Nxe6 {[%clk 0:02:51]}  fxe6 {[%clk 0:01:07]} 15. Nb5 {[%clk 0:02:51]}  Nxe4 {[%clk 0:00:41]} 16. Bc4 {[%clk 0:02:45]}  Nxg3 {[%clk 0:00:37]} 17. hxg3 {[%clk 0:02:45]}  Kh8 {[%clk 0:00:21]} 18. Rxe6 {[%clk 0:02:43]}  Na5 {[%clk 0:00:04]} 19. Bd3 {[%clk 0:02:40]}  Rc8 {[%clk 0:00:03]} 20. Qh5 {[%clk 0:02:39]}  Rf6 {[%clk 0:00:02]} 21. Rxf6 {[%clk 0:02:39]}  exf6 {[%clk 0:00:01]} 22. Qg6 {[%clk 0:02:39]}  Qg8 {[%clk 0:00:02]} 23. Nd6 {[%clk 0:02:39]}  Rf8 {[%clk 0:00:01]} 24. Re1 {[%clk 0:02:38]}  Nc6 {[%clk 0:00:01]} 25. Nf5 {[%clk 0:02:34]}  Ne5 {[%clk 0:00:01]} 26. Qh5 {[%clk 0:02:24]}  Nxd3 {[%clk 0:00:01]} 27. cxd3 {[%clk 0:02:25]}  Rd8 {[%clk 0:00:01]} 28. Re7 {[%clk 0:02:24]} 1-0


[Site "https://www.chess.com"]

[Event "Titled Tuesday Blitz June 22 2021"]
[White "Rottenwohrer Suarez, Juan"]
[Black "Tari, Aryan"]
[WhiteFideId "32068182"]
[BlackFideId "1510045"]
[WhiteElo "2188"]
[BlackElo "2656"]
[Result "0-1"]
[Round "01"]
[TimeControl "180+1"]
[Date "2021.06.22"]
[WhiteClock "0:00:02"]
[BlackClock "0:01:51"]

1. d4 {[%clk 0:03:00]}  g6 {[%clk 0:02:55]} 2. Nf3 {[%clk 0:02:59]}  Bg7 {[%clk 0:02:55]} 3. g3 {[%clk 0:03:00]}  c5 {[%clk 0:02:55]} 4. Bg2 {[%clk 0:02:53]}  cxd4 {[%clk 0:02:54]} 5. Nxd4 {[%clk 0:02:54]}  Qb6 {[%clk 0:02:54]} 6. Nb3 {[%clk 0:02:51]}  Nc6 {[%clk 0:02:52]} 7. O-O {[%clk 0:02:50]}  d6 {[%clk 0:02:52]} 8. Nc3 {[%clk 0:02:42]}  Nf6 {[%clk 0:02:52]} 9. Be3 {[%clk 0:02:38]}  Qc7 {[%clk 0:02:52]} 10. Bg5 {[%clk 0:02:18]}  Be6 {[%clk 0:02:48]} 11. e4 {[%clk 0:02:15]}  O-O {[%clk 0:02:44]} 12. Re1 {[%clk 0:02:09]}  Ne5 {[%clk 0:02:42]} 13. Nd4 {[%clk 0:01:53]}  Nc4 {[%clk 0:02:42]} 14. Nxe6 {[%clk 0:01:49]}  fxe6 {[%clk 0:02:43]} 15. Bh3 {[%clk 0:01:35]}  Nxb2 {[%clk 0:02:41]} 16. Bxe6+ {[%clk 0:01:34]}  Kh8 {[%clk 0:02:42]} 17. Qd2 {[%clk 0:01:33]}  Nc4 {[%clk 0:02:36]} 18. Qe2 {[%clk 0:01:19]}  Ne5 {[%clk 0:02:35]} 19. Nb5 {[%clk 0:00:46]}  Qc6 {[%clk 0:02:35]} 20. f4 {[%clk 0:00:42]}  Qc5+ {[%clk 0:02:15]} 21. Kh1 {[%clk 0:00:35]}  Nc6 {[%clk 0:02:07]} 22. Rab1 {[%clk 0:00:32]}  h6 {[%clk 0:02:03]} 23. Bxf6 {[%clk 0:00:24]}  Rxf6 {[%clk 0:02:04]} 24. Bd5 {[%clk 0:00:20]}  a6 {[%clk 0:02:03]} 25. Nc7 {[%clk 0:00:15]}  Nd4 {[%clk 0:02:03]} 26. Qf2 {[%clk 0:00:14]}  Qxc7 {[%clk 0:02:01]} 27. Qxd4 {[%clk 0:00:14]}  Rxf4 {[%clk 0:02:02]} 28. Qd2 {[%clk 0:00:05]}  Rff8 {[%clk 0:01:55]} 29. Rxb7 {[%clk 0:00:05]}  Qc5 {[%clk 0:01:55]} 30. Qe2 {[%clk 0:00:05]}  Rf2 {[%clk 0:01:52]} 31. Qg4 {[%clk 0:00:05]}  Qxc2 {[%clk 0:01:52]} 32. Qh3 {[%clk 0:00:02]}  Qd3 {[%clk 0:01:51]} 0-1


[Site "https://www.chess.com"]

[Event "Titled Tuesday Blitz June 22 2021"]
[White "Saksham, Rautela"]
[Black "Martinez Alcantara, Jose Eduardo"]
[WhiteFideId "35046977"]
[BlackFideId "3805662"]
[WhiteElo "1990"]
[BlackElo "2690"]
[Result "0-1"]
[Round "01"]
[TimeControl "180+1"]
[Date "2021.06.22"]
[WhiteClock "0:00:43"]
[BlackClock "0:02:08"]

1. Nf3 {[%clk 0:02:59]}  c5 {[%clk 0:02:59]} 2. g3 {[%clk 0:02:58]}  Nc6 {[%clk 0:02:59]} 3. Bg2 {[%clk 0:02:59]}  g6 {[%clk 0:03:00]} 4. O-O {[%clk 0:02:59]}  Bg7 {[%clk 0:03:01]} 5. c4 {[%clk 0:02:59]}  e5 {[%clk 0:03:00]} 6. Nc3 {[%clk 0:02:58]}  d6 {[%clk 0:03:01]} 7. d3 {[%clk 0:02:58]}  Nge7 {[%clk 0:03:00]} 8. a3 {[%clk 0:02:55]}  a5 {[%clk 0:02:59]} 9. Ne1 {[%clk 0:02:51]}  Be6 {[%clk 0:02:59]} 10. Nc2 {[%clk 0:02:51]}  d5 {[%clk 0:02:59]} 11. cxd5 {[%clk 0:02:48]}  Nxd5 {[%clk 0:03:00]} 12. Rb1 {[%clk 0:02:33]}  O-O {[%clk 0:02:50]} 13. Ne3 {[%clk 0:02:18]}  Nde7 {[%clk 0:02:43]} 14. Ne4 {[%clk 0:01:56]}  b6 {[%clk 0:02:41]} 15. Bd2 {[%clk 0:01:45]}  a4 {[%clk 0:02:38]} 16. Bc3 {[%clk 0:01:40]}  Nd4 {[%clk 0:02:27]} 17. Ng5 {[%clk 0:01:24]}  Bb3 {[%clk 0:02:26]} 18. Qd2 {[%clk 0:01:19]}  Ra7 {[%clk 0:02:24]} 19. Rbc1 {[%clk 0:01:09]}  h6 {[%clk 0:02:23]} 20. Nf3 {[%clk 0:01:07]}  Be6 {[%clk 0:02:17]} 21. Bxd4 {[%clk 0:01:05]}  exd4 {[%clk 0:02:16]} 22. Nc4 {[%clk 0:00:56]}  Nc6 {[%clk 0:02:15]} 23. Rfe1 {[%clk 0:00:43]}  b5 {[%clk 0:02:08]} 0-1


[Site "https://www.chess.com"]